lending/lending_fUSD_20260411
["ID","MTS","AMOUNT","RATE_DAILY","PERIOD"]
[420245350,1775852006665,-67753.72910463,0.00046512,30]
[420245351,1775852006775,-49425.36551874,0.00046512,90]
[420245352,1775852006864,-5637.99926766,0.00046512,60]
[420245353,1775852006941,-10659.24703848,0.00046512,120]
[420245354,1775852007012,-827908.0,0.00046512,60]
[420245355,1775852007085,-1497.72,0.00046512,120]
[420245356,1775852007154,-1497.72,0.00046512,120]
[420245357,1775852007223,-1497.72,0.00046512,120]
[420245358,1775852007312,-1497.72,0.00046512,120]
[420245359,1775852007398,-1497.72,0.00046512,120]
[420245360,1775852007485,-1497.72,0.00046512,120]
[420245361,1775852007561,-1497.72,0.00046512,120]
[420245362,1775852007641,-1497.72,0.00046512,120]
[420245363,1775852007718,-1497.72,0.00046512,120]
[420245364,1775852007786,-1497.72,0.00046512,120]
[420245365,1775852007856,-1497.72,0.00046512,120]
[420245366,1775852007925,-1497.72,0.00046512,120]
[420245367,1775852007995,-1497.72,0.00046512,120]
[420245368,1775852008064,-1497.72,0.00046512,120]
[420245369,1775852008137,-1497.72,0.00046512,120]
[420245370,1775852008207,-1497.72,0.00046512,120]
[420245371,1775852008597,-1497.72,0.00046512,120]
[420245372,1775852008665,-1497.72,0.00046512,120]
[420245373,1775852008742,-1497.72,0.00046512,120]
[420245374,1775852008822,-1497.72,0.00046512,120]
[420245375,1775852008898,-1497.72,0.00046512,120]
[420245376,1775852008972,-1497.72,0.00046512,120]
[420245377,1775852009049,-1497.72,0.00046512,120]
[420245378,1775852009121,-1497.92338813,0.00046512,120]
[420245379,1775852009192,-113412.22072123,0.00046512,120]
[420245380,1775852009262,-478.2083482,0.00046512,60]
[420245381,1775852009329,-1007.40157462,0.00046512,30]
[420245382,1775852009398,-500.0,0.00046512,120]
[420245383,1775852009466,-500.0,0.00046512,120]
[420245384,1775852009533,-500.0,0.00046512,120]
[420245385,1775852009601,-500.0,0.00046512,120]
[420245386,1775852009672,-500.0,0.00046512,120]
[420245387,1775852009755,-383.70168207,0.00046512,120]
[420245388,1775852010076,-500.0,0.00046512,120]
[420245389,1775852010320,-442.87040154,0.00046512,120]
[420245390,1775852010451,-180.49825209,0.00046512,120]
[420245391,1775852010538,-555.67826736,0.00046512,120]
[420245392,1775852010626,-500.0,0.00046512,120]
[420245393,1775852010756,-165.75284172,0.00046512,120]
[420245394,1775852010949,-571.78135864,0.00046512,120]
[420245395,1775852011089,-500.0,0.00046512,120]
[420245396,1775852011265,-287.92963355,0.00046512,120]
[420245397,1775852011360,-500.0,0.00046512,120]
[420245398,1775852011440,-500.0,0.00046512,120]
[420245399,1775852011512,-500.0,0.00046512,120]
[420245400,1775852011590,-523.57490566,0.00046512,120]
[420245401,1775852011662,-500.0,0.00046512,120]
[420245402,1775852011739,-500.0,0.00046512,120]
[420245403,1775852011807,-500.0,0.00046512,120]
[420245404,1775852011874,-500.0,0.00046512,120]
[420245405,1775852011941,-500.0,0.00046512,120]
[420245406,1775852012017,-314.86629636,0.00046512,120]
[420245407,1775852012093,-500.0,0.00046512,120]
[420245408,1775852012159,-500.0,0.00046512,120]
[420245409,1775852012236,-633.831471,0.00046512,120]
[420245410,1775852012314,-511.92242895,0.00046512,120]
[420245411,1775852012393,-500.0,0.00046512,120]
[420245412,1775852012488,-500.0,0.00046512,120]
[420245413,1775852012622,-500.0,0.00046512,120]
[420245414,1775852012712,-500.0,0.00046512,120]
[420245415,1775852012795,-500.0,0.00046512,120]
[420245416,1775852012871,-500.0,0.00046512,120]
[420245417,1775852012940,-500.0,0.00046512,120]
[420245418,1775852013009,-516.30747196,0.00046512,120]
[420245419,1775852013081,-502.76907838,0.00046512,120]
[420245420,1775852013157,-500.0,0.00046512,120]
[420245421,1775852013240,-500.0,0.00046512,120]
[420245422,1775852013322,-500.0,0.00046512,120]
[420245423,1775852013414,-500.0,0.00046512,120]
[420245424,1775852013500,-500.0,0.00046512,120]
[420245425,1775852013584,-500.0,0.00046512,120]
[420245426,1775852013675,-500.0,0.00046512,120]
[420245427,1775852013759,-500.0,0.00046512,120]
[420245428,1775852013839,-500.0,0.00046512,120]
[420245429,1775852013932,-500.0,0.00046512,120]
[420245430,1775852014013,-506.49,0.00046512,120]
[420245431,1775852014112,-500.0,0.00046512,120]
[420245432,1775852014184,-203.64798276,0.00046512,120]
[420245433,1775852014258,-500.0,0.00046512,120]
[420245434,1775852014330,-500.0,0.00046512,120]
[420245435,1775852014416,-648.13194692,0.00046512,120]
[420245436,1775852014496,-500.0,0.00046512,120]
[420245437,1775852014603,-644.8598867,0.00046512,120]
[420245438,1775852014692,-500.0,0.00046512,120]
[420245439,1775852014774,-500.0,0.00046512,120]
[420245440,1775852014847,-500.0,0.00046512,120]
[420245441,1775852014923,-255.99718678,0.00046512,120]
[420245442,1775852014992,-500.0,0.00046512,120]
[420245443,1775852015058,-516.80200914,0.00046512,120]
[420245444,1775852015133,-514.43507708,0.00046512,120]
[420245445,1775852015212,-500.0,0.00046512,120]
[420245446,1775852015285,-500.0,0.00046512,120]
[420245447,1775852015359,-500.0,0.00046512,120]
[420245448,1775852015435,-500.0,0.00046512,120]
[420245449,1775852015524,-487.27191454,0.00046512,120]
[420245450,1775852015598,-501.8248665,0.00046512,120]
[420245451,1775852015666,-500.0,0.00046512,120]
[420245452,1775852015740,-500.0,0.00046512,120]
[420245453,1775852015811,-500.0,0.00046512,120]
[420245454,1775852015885,-502.37056569,0.00046512,120]
[420245455,1775852015963,-434.5549555,0.00046512,120]
[420245456,1775852016049,-503.00065235,0.00046512,120]
[420245457,1775852016136,-500.0,0.00046512,120]
[420245458,1775852016223,-258.92251192,0.00046512,120]
[420245459,1775852016307,-500.0,0.00046512,120]
[420245460,1775852016388,-500.0,0.00046512,120]
[420245461,1775852016463,-500.0,0.00046512,120]
[420245462,1775852016542,-512.23476786,0.00046512,120]
[420245463,1775852016621,-167.73898965,0.00046512,120]
[420245464,1775852016707,-500.0,0.00046512,120]
[420245465,1775852016781,-500.0,0.00046512,120]
[420245466,1775852016856,-406.38,0.00046512,120]
[420245467,1775852016940,-502.92236785,0.00046512,120]
[420245468,1775852017024,-500.0,0.00046512,120]
[420245469,1775852017105,-645.15787197,0.00046512,120]
[420245470,1775852017197,-649.85159934,0.00046512,120]
[420245471,1775852017278,-500.0,0.00046512,120]
[420245472,1775852017372,-500.0,0.00046512,120]
[420245473,1775852017486,-618.47428124,0.00046512,120]
[420245474,1775852017593,-663.96,0.00046512,120]
[420245475,1775852017700,-663.96,0.00046512,120]
[420245476,1775852017788,-663.96,0.00046512,120]
[420245477,1775852017866,-500.0,0.00046512,120]
[420245478,1775852017936,-663.96,0.00046512,120]
[420245479,1775852018005,-500.0,0.00046512,120]
[420245480,1775852018081,-663.96,0.00046512,120]
[420245481,1775852018165,-663.96,0.00046512,120]
[420245482,1775852018246,-663.96,0.00046512,120]
[420245483,1775852018322,-663.96,0.00046512,120]
[420245484,1775852018414,-663.96,0.00046512,120]
[420245485,1775852018494,-663.96,0.00046512,120]
[420245486,1775852018579,-663.96,0.00046512,120]
[420245487,1775852018670,-663.96,0.00046512,120]
[420245488,1775852019132,-663.96,0.00046512,120]
[420245489,1775852019205,-663.96,0.00046512,120]
[420245490,1775852019278,-663.96,0.00046512,120]
[420245491,1775852019349,-663.96,0.00046512,120]
[420245492,1775852019430,-500.0,0.00046512,120]
[420245493,1775852019513,-663.96,0.00046512,120]
[420245494,1775852019600,-663.96,0.00046512,120]
[420245495,1775852019673,-663.96,0.00046512,120]
[420245496,1775852019748,-663.96,0.00046512,120]
[420245497,1775852019855,-663.96,0.00046512,120]
[420245498,1775852019946,-500.0,0.00046512,120]
[420245499,1775852020028,-594.0064783,0.00046512,120]
[420245500,1775852020100,-663.96,0.00046512,120]
[420245501,1775852020185,-663.96,0.00046512,120]
[420245502,1775852020268,-664.06,0.00046512,120]
[420245503,1775852020355,-506.40896719,0.00046512,120]
[420245504,1775852020437,-500.0,0.00046512,120]
[420245505,1775852020513,-589.38848881,0.00046512,120]
[420245506,1775852020607,-500.0,0.00046512,120]
[420245507,1775852020736,-500.0,0.00046512,120]
[420245508,1775852020828,-500.0,0.00046512,120]
[420245509,1775852020921,-500.0,0.00046512,120]
[420245510,1775852020998,-159.48790682,0.00046512,120]
[420245511,1775852021075,-501.89202561,0.00046512,120]
[420245512,1775852021151,-496.96818379,0.00046512,120]
[420245513,1775852021225,-574.72555252,0.00046512,120]
[420245514,1775852021323,-506.98384177,0.00046512,120]
[420245515,1775852021409,-512.78000064,0.00046512,120]
[420245516,1775852021493,-500.0,0.00046512,120]
[420245517,1775852021597,-500.0,0.00046512,120]
[420245518,1775852021671,-317.81222552,0.00046512,120]
[420245519,1775852021744,-510.57875473,0.00046512,120]
[420245520,1775852021815,-508.12363034,0.00046512,120]
[420245521,1775852021888,-520.47287319,0.00046512,120]
[420245522,1775852021971,-510.54441323,0.00046512,120]
[420245523,1775852022039,-312.21154126,0.00046512,120]
[420245524,1775852022123,-504.91781836,0.00046512,120]
[420245525,1775852022204,-503.62552085,0.00046512,120]
[420245526,1775852022284,-500.0,0.00046512,120]
[420245527,1775852022378,-500.0,0.00046512,120]
[420245528,1775852022466,-264.63,0.00046512,120]
[420245529,1775852022537,-509.24668896,0.00046512,120]
[420245530,1775852022626,-500.0,0.00046512,120]
[420245531,1775852022706,-500.0,0.00046512,120]
[420245532,1775852022790,-505.92017636,0.00046512,120]
[420245533,1775852022868,-500.0,0.00046512,120]
[420245534,1775852022950,-512.32770899,0.00046512,120]
[420245535,1775852023030,-500.0,0.00046512,120]
[420245536,1775852023101,-504.56021695,0.00046512,120]
[420245537,1775852023195,-510.74411829,0.00046512,120]
[420245538,1775852023281,-503.50208847,0.00046512,120]
[420245539,1775852023372,-534.94466458,0.00046512,120]
[420245540,1775852023470,-500.0,0.00046512,120]
[420245541,1775852023572,-601.07666366,0.00046512,120]
[420245542,1775852023680,-500.0,0.00046512,120]
[420245543,1775852023791,-500.0,0.00046512,120]
[420245544,1775852023873,-515.1055104,0.00046512,120]
[420245545,1775852023940,-530.64283376,0.00046512,120]
[420245546,1775852024006,-517.81481756,0.00046512,120]
[420245547,1775852024076,-500.0,0.00046512,120]
[420245548,1775852024142,-518.39396795,0.00046512,120]
[420245549,1775852024209,-461.18713591,0.00046512,120]
[420245550,1775852024282,-500.0,0.00046512,120]
[420245551,1775852024367,-500.0,0.00046512,120]
[420245552,1775852024469,-501.78922958,0.00046512,120]
[420245553,1775852024548,-500.0,0.00046512,120]
[420245554,1775852024623,-509.78537356,0.00046512,120]
[420245555,1775852024706,-500.0,0.00046512,120]
[420245556,1775852024786,-216.0456233,0.00046512,120]
[420245557,1775852024887,-500.0,0.00046512,120]
[420245558,1775852024957,-530.96085884,0.00046512,120]
[420245559,1775852025033,-511.93999178,0.00046512,120]
[420245560,1775852025103,-500.0,0.00046512,120]
[420245561,1775852025172,-181.64988365,0.00046512,120]
[420245562,1775852025242,-501.81608652,0.00046512,120]
[420245563,1775852025320,-500.0,0.00046512,120]
[420245564,1775852025403,-546.04,0.00046512,120]
[420245565,1775852025474,-510.13501479,0.00046512,120]
[420245566,1775852025551,-500.0,0.00046512,120]
[420245567,1775852025629,-500.0,0.00046512,120]
[420245568,1775852025726,-500.0,0.00046512,120]
[420245569,1775852025834,-365.74,0.00046512,120]
[420245570,1775852025939,-515.71868671,0.00046512,120]
[420245571,1775852026027,-500.0,0.00046512,120]
[420245572,1775852026119,-500.0,0.00046512,120]
[420245573,1775852026207,-500.0,0.00046512,120]
[420245574,1775852026304,-578.45267561,0.00046512,120]
[420245575,1775852026384,-330.31205332,0.00046512,120]
[420245576,1775852026459,-502.78229999,0.00046512,120]
[420245577,1775852026540,-500.0,0.00046512,120]
[420245578,1775852026632,-500.0,0.00046512,120]
[420245579,1775852026717,-500.0,0.00046512,120]
[420245580,1775852026804,-594.75146217,0.00046512,120]
[420245581,1775852026899,-502.17831058,0.00046512,120]
[420245582,1775852027002,-526.28829061,0.00046512,120]
[420245583,1775852027093,-500.0,0.00046512,120]
[420245584,1775852027171,-275.47033898,0.00046512,120]
[420245585,1775852027245,-508.23492132,0.00046512,120]
[420245586,1775852027318,-645.33181201,0.00046512,120]
[420245587,1775852027395,-500.0,0.00046512,120]
[420245588,1775852027471,-500.0,0.00046512,120]
[420245589,1775852027566,-515.81561534,0.00046512,120]
[420245590,1775852027668,-508.55284516,0.00046512,120]
[420245591,1775852027767,-511.24917735,0.00046512,120]
[420245592,1775852027856,-509.94157187,0.00046512,120]
[420245593,1775852027933,-508.65641282,0.00046512,120]
[420245594,1775852028012,-500.0,0.00046512,120]
[420245595,1775852028088,-502.84016572,0.00046512,120]
[420245596,1775852028166,-504.0052079,0.00046512,120]
[420245597,1775852028237,-500.0,0.00046512,120]
[420245598,1775852028311,-439.87778629,0.00046512,120]
[420245599,1775852028381,-516.93758391,0.00046512,120]
[420245600,1775852028454,-506.31774742,0.00046512,120]
[420245601,1775852028527,-500.0,0.00046512,120]
[420245602,1775852028604,-500.0,0.00046512,120]
[420245603,1775852028691,-500.0,0.00046512,120]
[420245604,1775852029149,-503.34788036,0.00046512,120]
[420245605,1775852029256,-500.0,0.00046512,120]
[420245606,1775852029346,-506.37957105,0.00046512,120]
[420245607,1775852029443,-504.7608786,0.00046512,120]
[420245608,1775852029520,-500.0,0.00046512,120]
[420245609,1775852029594,-512.43523597,0.00046512,120]
[420245610,1775852029668,-500.0,0.00046512,120]
[420245611,1775852029746,-505.14868659,0.00046512,120]
[420245612,1775852029817,-500.0,0.00046512,120]
[420245613,1775852029897,-500.0,0.00046512,120]
[420245614,1775852029975,-396.08510135,0.00046512,120]
[420245615,1775852030086,-500.0,0.00046512,120]
[420245616,1775852030188,-516.4262391,0.00046512,120]
[420245617,1775852030286,-503.88034792,0.00046512,120]
[420245618,1775852030365,-500.0,0.00046512,120]
[420245619,1775852030436,-500.0,0.00046512,120]
[420245620,1775852030509,-501.7453302,0.00046512,120]
[420245621,1775852030597,-317.24683648,0.00046512,120]
[420245622,1775852030667,-500.0,0.00046512,120]
[420245623,1775852030739,-442.75,0.00046512,120]
[420245624,1775852030809,-500.00840274,0.00046512,120]
[420245625,1775852030883,-510.50667281,0.00046512,120]
[420245626,1775852030958,-500.0,0.00046512,120]
[420245627,1775852031035,-510.17637867,0.00046512,120]
[420245628,1775852031117,-539.666473,0.00046512,120]
[420245629,1775852031204,-500.0,0.00046512,120]
[420245630,1775852031307,-232.52072249,0.00046512,120]
[420245631,1775852031382,-513.59069958,0.00046512,120]
[420245632,1775852031454,-500.0,0.00046512,120]
[420245633,1775852031535,-579.1346765,0.00046512,120]
[420245634,1775852031607,-500.0,0.00046512,120]
[420245635,1775852031677,-557.68852789,0.00046512,120]
[420245636,1775852031751,-500.0,0.00046512,120]
[420245637,1775852031828,-500.0,0.00046512,120]
[420245638,1775852031924,-500.0,0.00046512,120]
[420245639,1775852032019,-564.71643708,0.00046512,120]
[420245640,1775852032126,-510.78248089,0.00046512,120]
[420245641,1775852032233,-502.35712647,0.00046512,120]
[420245642,1775852032320,-511.95870094,0.00046512,120]
[420245643,1775852032394,-507.71743859,0.00046512,120]
[420245644,1775852032481,-500.0,0.00046512,120]
[420245645,1775852032569,-325.4842103,0.00046512,120]
[420245646,1775852032653,-525.27030544,0.00046512,120]
[420245647,1775852032733,-518.39726808,0.00046512,120]
[420245648,1775852032808,-581.73769119,0.00046512,120]
[420245649,1775852032885,-502.46138298,0.00046512,120]
[420245650,1775852032985,-500.0,0.00046512,120]
[420245651,1775852033085,-530.63754745,0.00046512,120]
[420245652,1775852033176,-508.2815291,0.00046512,120]
[420245653,1775852033262,-511.00751385,0.00046512,60]
[420245654,1775852033348,-501.6423962,0.00046512,120]
[420245655,1775852033434,-514.14018879,0.00046512,120]
[420245656,1775852033522,-512.17645004,0.00046512,120]
[420245657,1775852033595,-501.77043159,0.00046512,120]
[420245658,1775852033672,-500.0,0.00046512,120]
[420245659,1775852033746,-578.59142076,0.00046512,120]
[420245660,1775852033812,-500.0,0.00046512,120]
[420245661,1775852033890,-500.0,0.00046512,120]
[420245662,1775852033969,-500.0,0.00046512,120]
[420245663,1775852034052,-502.02509448,0.00046512,120]
[420245664,1775852034129,-516.4034521,0.00046512,120]
[420245665,1775852034203,-228.07052126,0.00046512,120]
[420245666,1775852034280,-485.06916857,0.00046512,120]
[420245667,1775852034360,-500.0,0.00046512,120]
[420245668,1775852034469,-380.84849151,0.00046512,120]
[420245669,1775852034583,-507.0511588,0.00046512,120]
[420245670,1775852034665,-500.0,0.00046512,120]
[420245671,1775852034760,-500.0,0.00046512,120]
[420245672,1775852034830,-506.5074197,0.00046512,120]
[420245673,1775852034917,-230.78651864,0.00046512,120]
[420245674,1775852035002,-500.0,0.00046512,120]
[420245675,1775852035095,-533.62839115,0.00046512,120]
[420245676,1775852035227,-500.0,0.00046512,120]
[420245677,1775852035355,-369.07247496,0.00046512,120]
[420245678,1775852035432,-500.0,0.00046512,30]
[420245679,1775852035529,-500.0,0.00046512,30]
[420245680,1775852035599,-500.0,0.00046512,30]
[420245681,1775852035667,-233.26174187,0.00046512,30]
[420245682,1775852035738,-508.05317188,0.00046512,120]
[420245683,1775852035806,-511.23447893,0.00046512,120]
[420245684,1775852035885,-507.1086908,0.00046512,120]
[420245685,1775852035968,-500.0,0.00046512,120]
[420245686,1775852036068,-623.32417155,0.00046512,120]
[420245687,1775852036161,-500.0,0.00046512,120]
[420245688,1775852036251,-528.88240397,0.00046512,120]
[420245689,1775852036341,-521.78914208,0.00046512,120]
[420245690,1775852036421,-175.05745767,0.00046512,120]
[420245691,1775852036496,-500.0,0.00046512,120]
[420245692,1775852036570,-503.79687069,0.00046512,120]
[420245693,1775852036646,-541.42486571,0.00046512,120]
[420245694,1775852036719,-564.06766442,0.00046512,120]
[420245695,1775852036788,-512.15173338,0.00046512,120]
[420245696,1775852036856,-505.5905037,0.00046512,120]
[420245697,1775852036925,-500.0,0.00046512,120]
[420245698,1775852037002,-255.07479726,0.00046512,120]
[420245699,1775852037075,-525.45423569,0.00046512,120]
[420245700,1775852037149,-504.54479589,0.00046512,120]
[420245701,1775852037223,-516.00067639,0.00046512,120]
[420245702,1775852037293,-508.58547315,0.00046512,120]
[420245703,1775852037365,-245.55755778,0.00046512,120]
[420245704,1775852037459,-500.0,0.00046512,120]
[420245705,1775852037591,-500.0,0.00046512,120]
[420245706,1775852037702,-185.26006954,0.00046512,120]
[420245707,1775852037807,-548.69516363,0.00046512,120]
[420245708,1775852037902,-501.66948514,0.00046512,120]
[420245709,1775852037983,-500.0,0.00046512,120]
[420245710,1775852038057,-536.88784514,0.00046512,120]
[420245711,1775852038135,-500.0,0.00046512,120]
[420245712,1775852038209,-528.58882236,0.00046512,120]
[420245713,1775852038280,-500.0,0.00046512,120]
[420245714,1775852038349,-231.43330962,0.00046512,120]
[420245715,1775852038438,-500.0,0.00046512,120]
[420245716,1775852038538,-247.16620685,0.00046512,120]
[420245717,1775852038649,-500.0,0.00046512,120]
[420245718,1775852038795,-518.61698322,0.00046512,120]
[420245719,1775852038956,-522.34757889,0.00046512,120]
[420245720,1775852039057,-538.58072152,0.00046512,120]
[420245721,1775852039126,-507.1970393,0.00046512,120]
[420245722,1775852039472,-500.0,0.00046512,120]
[420245723,1775852039628,-500.0,0.00046512,120]
[420245724,1775852039764,-500.0,0.00046512,120]
[420245725,1775852039835,-211.3,0.00046512,120]
[420245726,1775852039907,-502.87444572,0.00046512,120]
[420245727,1775852039978,-500.0,0.00046512,120]
[420245728,1775852040050,-209.79804809,0.00046512,120]
[420245729,1775852040129,-500.0,0.00046512,120]
[420245730,1775852040200,-500.0,0.00046512,120]
[420245731,1775852040278,-398.00918222,0.00046512,120]
[420245732,1775852040352,-10000.0,0.00046512,30]
[420245733,1775852040440,-502.17114254,0.00046512,120]
[420245734,1775852040531,-502.25548251,0.00046512,90]
[420245735,1775852040614,-500.0,0.00046512,120]
[420245736,1775852040699,-26727.0,0.00046512,120]
[420245737,1775852040781,-500.0,0.00046512,120]
[420245738,1775852040854,-500.0,0.00046512,120]
[420245739,1775852040922,-216.83272924,0.00046512,120]
[420245740,1775852040997,-500.0,0.00046512,120]
[420245741,1775852041070,-500.0,0.00046512,120]
[420245742,1775852041143,-500.0,0.00046512,120]
[420245743,1775852041222,-500.0,0.00046512,120]
[420245744,1775852041290,-500.0,0.00046512,120]
[420245745,1775852041365,-500.0,0.00046512,120]
[420245746,1775852041439,-398.37895082,0.00046512,120]
[420245747,1775852041516,-340.0,0.00046512,120]
[420245748,1775852041601,-545.05422067,0.00046512,120]
[420245749,1775852041730,-500.0,0.00046512,120]
[420245750,1775852041815,-4270.346705,0.00046512,120]
[420245751,1775852041889,-500.0,0.00046512,120]
[420245752,1775852042002,-461.69862256,0.00046512,120]
[420245753,1775852042123,-234.28005685,0.00046512,30]
[420245754,1775852042209,-500.0,0.00046512,120]
[420245755,1775852042284,-502.66626782,0.00046512,120]
[420245756,1775852042359,-3000.0,0.00046512,30]
[420245757,1775852042435,-222.66559898,0.00046512,30]
[420245758,1775852042508,-200.0,0.00046512,30]
[420245759,1775852042582,-300.0,0.00046512,30]
[420245760,1775852042664,-300.0,0.00046512,30]
[420245761,1775852042760,-300.0,0.00046512,30]
[420245762,1775852042883,-300.0,0.00046512,30]
[420245763,1775852043022,-300.0,0.00046512,30]
[420245764,1775852043109,-300.0,0.00046512,30]
[420245765,1775852043194,-300.0,0.00046512,30]
[420245766,1775852043284,-300.0,0.00046512,30]
[420245767,1775852043364,-300.0,0.00046512,30]
[420245768,1775852043444,-300.0,0.00046512,30]
[420245769,1775852043522,-300.0,0.00046512,30]
[420245770,1775852043595,-300.0,0.00046512,30]
[420245771,1775852043668,-300.0,0.00046512,30]
[420245772,1775852043740,-300.0,0.00046512,30]
[420245773,1775852043823,-300.0,0.00046512,30]
[420245774,1775852043907,-23505.52966497,0.00046512,120]
[420245775,1775852043996,-500.0,0.00046512,120]
[420245776,1775852044078,-500.0,0.00046512,120]
[420245777,1775852044185,-500.0,0.00046512,120]
[420245778,1775852044278,-500.0,0.00046512,120]
[420245779,1775852044398,-63667.61,0.00046512,120]
[420245780,1775852044480,-252.4404364,0.00046512,120]
[420245781,1775852044559,-500.0,0.00046512,120]
[420245782,1775852044632,-185.87560097,0.00046512,120]
[420245783,1775852044702,-161.05912882,0.00046512,120]
[420245784,1775852044776,-216.30633177,0.00046512,120]
[420245785,1775852044851,-304.62768034,0.00046512,120]
[420245786,1775852044947,-219.45594982,0.00046512,120]
[420245787,1775852045039,-169.33553613,0.00046512,120]
[420245788,1775852045132,-178.3806062,0.00046512,120]
[420245789,1775852045220,-1702.8187208,0.00046512,120]
[420245790,1775852045302,-332.38749357,0.00046512,120]
[420245791,1775852045387,-187.71438545,0.00046512,120]
[420245792,1775852045479,-198.00454642,0.00046512,120]
[420245793,1775852045571,-173.689016,0.00046512,120]
[420245794,1775852045657,-195.77051808,0.00046512,120]
[420245795,1775852045734,-500.0,0.00046512,120]
[420245796,1775852045807,-292.99930957,0.00046512,120]
[420245797,1775852045884,-154.35441034,0.00046512,120]
[420245798,1775852045964,-204.5054976,0.00046512,120]
[420245799,1775852046048,-273.87488004,0.00046512,120]
[420245800,1775852046127,-300.79985939,0.00046512,120]
[420245801,1775852046228,-506.62653175,0.00046512,120]
[420245802,1775852046426,-187.12397661,0.00046512,120]
[420245803,1775852046541,-1215.0,0.00046512,120]
[420245804,1775852046619,-152.90155181,0.00046512,120]
[420245805,1775852046694,-197.20588546,0.00046512,120]
[420245806,1775852046775,-500.0,0.00046512,120]
[420245807,1775852046860,-500.0,0.00046512,120]
[420245808,1775852046936,-500.0,0.00046512,120]
[420245809,1775852047019,-158.9213298,0.00046512,120]
[420245810,1775852047099,-520.9252847,0.00046512,120]
[420245811,1775852047207,-302.77347179,0.00046512,120]
[420245812,1775852047325,-154.84795186,0.00046512,120]
[420245813,1775852047422,-201.85930783,0.00046512,120]
[420245814,1775852047528,-168.11477787,0.00046512,120]
[420245815,1775852047609,-151.23921529,0.00046512,120]
[420245816,1775852047697,-580.03278006,0.00046512,120]
[420245817,1775852047777,-230.23891219,0.00046512,120]
[420245818,1775852047867,-258.01227168,0.00046512,120]
[420245819,1775852047951,-553.88959376,0.00046512,120]
[420245820,1775852048039,-239.24424494,0.00046512,120]
[420245821,1775852048125,-166.3635457,0.00046512,120]
[420245822,1775852048220,-249.9775424,0.00046512,120]
[420245823,1775852048329,-279.3200839,0.00046512,120]
[420245824,1775852048417,-350.56008614,0.00046512,120]
[420245825,1775852048499,-500.0,0.00046512,120]
[420245826,1775852048578,-183.53166063,0.00046512,120]
[420245827,1775852048657,-372.85368688,0.00046512,120]
[420245828,1775852048740,-535.95794949,0.00046512,120]
[420245829,1775852048831,-155.2490629,0.00046512,120]
[420245830,1775852048930,-209.89243477,0.00046512,120]
[420245831,1775852049051,-167.28654454,0.00046512,120]
[420245832,1775852049158,-285.64748233,0.00046512,120]
[420245833,1775852049256,-349.02504063,0.00046512,120]
[420245834,1775852049342,-219.6288867,0.00046512,120]
[420245835,1775852049435,-497.19631136,0.00046512,120]
[420245836,1775852049519,-175.8391134,0.00046512,120]
[420245837,1775852049595,-178.25922042,0.00046512,120]
[420245838,1775852049996,-500.0,0.00046512,120]
[420245839,1775852050235,-563.759,0.00046512,120]
[420245840,1775852050325,-221.22643622,0.00046512,120]
[420245841,1775852050414,-257.57051426,0.00046512,120]
[420245842,1775852050514,-217.34225699,0.00046512,120]
[420245843,1775852050599,-271.69616515,0.00046512,120]
[420245844,1775852050685,-605.43784694,0.00046512,120]
[420245845,1775852050773,-268.39061035,0.00046512,120]
[420245846,1775852050864,-214.1171797,0.00046512,120]
[420245847,1775852050951,-1713.37041651,0.00046512,120]
[420245848,1775852051033,-201.01472942,0.00046512,120]
[420245849,1775852051121,-194.95757364,0.00046512,120]